fUSD/lending_fUSD_20251222
["ID","MTS","AMOUNT","RATE_DAILY","PERIOD"]
[399522109,1766434245022,-150.0,0.00015481,2]
[399522110,1766434245031,-150.0,0.00015484,2]
[399522111,1766434245040,-500.0,0.00015493,2]
[399522112,1766434245050,-150.0,0.00015509,2]
[399522113,1766434245060,-150.0,0.00015514,2]
[399522114,1766434245070,-150.0,0.00015519,2]
[399522115,1766434245079,-150.0,0.00015519,2]
[399522116,1766434245089,-10182.76064837,0.00015529,2]
[399522117,1766434245098,-150.0,0.0001553,2]
[399522118,1766434245107,-150.0,0.0001553,2]
[399522119,1766434245117,-209.46558797,0.00015531,2]
[399522120,1766434245127,-166.66,0.00015542,2]
[399522121,1766434245137,-150.0,0.00015549,2]
[399522122,1766434245146,-150.0,0.00015556,2]
[399522123,1766434245156,-150.0,0.00015558,2]
[399522124,1766434245165,-23501.22449741,0.00015563,2]
[399522125,1766434245175,-150.0,0.00015571,2]
[399522126,1766434245188,-150.0,0.00015583,2]
[399522127,1766434245197,-150.0,0.00015597,2]
[399522128,1766434245206,-150.0,0.00015597,2]
[399522129,1766434245216,-150.0,0.00015614,2]
[399522130,1766434245225,-7021.19,0.00015616,2]
[399522131,1766434245235,-150.0,0.00015627,2]
[399522132,1766434245244,-150.0,0.00015627,2]
[399522133,1766434245254,-150.0,0.00015635,2]
[399522134,1766434245264,-150.0,0.00015645,2]
[399522135,1766434245273,-150.0,0.00015657,2]
[399522136,1766434245284,-150.0,0.00015674,2]
[399522137,1766434245295,-150.0,0.00015674,2]
[399522138,1766434245305,-150.0,0.0001568,2]
[399522139,1766434245315,-250.0,0.00015712,2]
[399522140,1766434245325,-150.0,0.00015712,2]
[399522141,1766434245335,-207.4,0.00015719,2]
[399522142,1766434245346,-1373.21,0.0001572,2]
[399522143,1766434245355,-200.0,0.0001572,2]
[399522144,1766434245365,-200.0,0.0001572,2]
[399522145,1766434245377,-500.0,0.0001572,2]
[399522146,1766434245387,-150.0,0.00015731,2]
[399522147,1766434245397,-150.0,0.00015735,2]
[399522148,1766434245407,-150.0,0.00015741,2]
[399522149,1766434245416,-150.0,0.00015745,2]
[399522150,1766434245426,-150.0,0.00015751,2]
[399522151,1766434245436,-150.0,0.00015751,2]
[399522152,1766434245745,-512.58288867,0.00015754,2]
[399522153,1766434245784,-150.0,0.00015773,2]
[399522154,1766434245794,-150.0,0.00015773,2]
[399522155,1766434245804,-359.44,0.00015774,2]
[399522156,1766434245813,-150.0,0.0001579,2]
[399522157,1766434245823,-150.0,0.00015805,2]
[399522158,1766434245832,-208.56,0.00015806,2]
[399522159,1766434245842,-150.0,0.0001581,2]
[399522160,1766434245851,-10000.0,0.00015813,2]
[399522161,1766434245861,-150.0,0.00015824,2]
[399522162,1766434245871,-150.0,0.00015828,2]
[399522163,1766434245880,-150.0,0.00015828,2]
[399522164,1766434245889,-150.0,0.00015854,2]
[399522165,1766434245899,-150.0,0.00015854,2]
[399522166,1766434245909,-150.0,0.00015854,2]
[399522167,1766434245919,-150.0,0.00015867,2]
[399522168,1766434245929,-150.0,0.00015876,2]
[399522169,1766434245939,-150.0,0.00015878,2]
[399522170,1766434245948,-3292.0,0.00015893,2]
[399522171,1766434245957,-150.0,0.00015905,2]
[399522172,1766434245967,-150.0,0.00015905,2]
[399522173,1766434245976,-150.0,0.00015913,2]
[399522174,1766434245986,-150.0,0.00015941,2]
[399522175,1766434245995,-150.0,0.00015944,2]
[399522176,1766434246004,-298.0,0.00015945,2]
[399522177,1766434246014,-150.0,0.00015952,2]
[399522178,1766434246023,-150.0,0.00015967,2]
[399522179,1766434246032,-150.0,0.00015967,2]
[399522180,1766434246041,-150.0,0.00015983,2]
[399522181,1766434246051,-150.0,0.00015983,2]
[399522182,1766434246060,-10182.76064837,0.00015986,2]
[399522183,1766434246070,-1373.24386216,0.00015994,2]
[399522184,1766434246080,-166.66,0.00015995,2]
[399522186,1766434246090,-500.0,0.00016,2]
[399522187,1766434246099,-150.0,0.00016003,2]
[399522188,1766434246109,-150.0,0.00016006,2]
[399522189,1766434246118,-23501.22449741,0.00016008,2]
[399522190,1766434246127,-150.0,0.00016016,2]
[399522191,1766434246137,-150.0,0.00016016,2]
[399522193,1766434246147,-150.0,0.00016021,2]
[399522195,1766434246156,-150.0,0.00016026,2]
[399522196,1766434246166,-150.0,0.0001606,2]
[399522197,1766434246176,-150.0,0.0001606,2]
[399522198,1766434246186,-150.0,0.00016072,2]
[399522199,1766434246196,-150.0,0.0001608,2]
[399522200,1766434246205,-150.0,0.00016092,2]
[399522201,1766434246215,-150.0,0.00016098,2]
[399522202,1766434246224,-150.0,0.000161,2]
[399522204,1766434246234,-5524.64,0.00016116,2]
[399522205,1766434246245,-150.0,0.00016137,2]
[399522206,1766434246255,-150.0,0.00016137,2]
[399522207,1766434246264,-150.0,0.00016137,2]
[399522208,1766434246274,-150.0,0.00016137,2]
[399522209,1766434246284,-578.20924308,0.00016149,2]
[399522210,1766434246294,-1108.0,0.00016149,2]
[399522211,1766434246303,-209.40437684,0.00016149,2]
[399522212,1766434246313,-500.0,0.00016149,2]
[399522213,1766434246323,-250.0,0.00016149,2]
[399522214,1766434246333,-500.0,0.00016149,2]
[399522215,1766434246343,-250.0,0.00016149,2]
[399522216,1766434246352,-500.0,0.00016149,2]
[399522217,1766434246362,-250.0,0.00016149,2]
[399522218,1766434246371,-500.0,0.00016149,2]
[399522219,1766434246381,-250.0,0.00016149,2]
[399522220,1766434246391,-500.0,0.00016149,2]
[399522221,1766434246401,-250.0,0.00016149,2]
[399522222,1766434246410,-500.0,0.00016149,2]
[399522223,1766434246420,-250.0,0.00016149,2]
[399522224,1766434246430,-500.0,0.00016149,2]
[399522225,1766434246440,-151.0,0.00016149,2]
[399522226,1766434246449,-250.0,0.00016149,2]
[399522227,1766434246458,-500.0,0.00016149,2]
[399522228,1766434246468,-250.0,0.00016149,2]
[399522229,1766434246477,-500.0,0.00016149,2]
[399522230,1766434246487,-250.0,0.00016149,2]
[399522231,1766434246496,-500.0,0.00016149,2]
[399522232,1766434246506,-250.0,0.00016149,2]
[399522233,1766434246519,-500.0,0.00016149,2]
[399522234,1766434246528,-250.0,0.00016149,2]
[399522235,1766434246538,-151.0,0.00016149,2]
[399522236,1766434246548,-620.0,0.00016149,2]
[399522237,1766434246558,-500.0,0.00016149,2]
[399522238,1766434246568,-500.0,0.00016149,2]
[399522239,1766434246577,-500.0,0.00016149,2]
[399522240,1766434246588,-500.0,0.00016149,2]
[399522241,1766434246598,-721.12765535,0.00016149,2]
[399522242,1766434246607,-500.0,0.00016149,2]
[399522243,1766434246617,-500.0,0.00016149,2]
[399522244,1766434246627,-500.0,0.00016149,2]
[399522245,1766434246638,-500.0,0.00016149,2]
[399522246,1766434246648,-505.29521909,0.00016149,2]
[399522247,1766434246658,-500.0,0.00016149,2]
[399522248,1766434246668,-574.12855637,0.00016149,2]
[399522249,1766434246677,-500.0,0.00016149,2]
[399522250,1766434246688,-500.0,0.00016149,2]
[399522251,1766434246699,-500.0,0.00016149,2]
[399522252,1766434246708,-500.0,0.00016149,2]
[399522253,1766434246717,-500.0,0.00016149,2]
[399522254,1766434246727,-500.0,0.00016149,2]
[399522255,1766434246736,-500.0,0.00016149,2]
[399522256,1766434246745,-500.0,0.00016149,2]
[399522257,1766434246755,-500.0,0.00016149,2]
[399522258,1766434246764,-322.6107,0.00016149,2]
[399522259,1766434246775,-500.0,0.00016149,2]
[399522260,1766434246784,-500.0,0.00016149,2]
[399522261,1766434246795,-500.0,0.00016149,2]
[399522262,1766434246804,-250.0,0.00016149,2]
[399522263,1766434246815,-500.0,0.00016149,2]
[399522264,1766434246824,-250.0,0.00016149,2]
[399522265,1766434246833,-500.0,0.00016149,2]
[399522266,1766434246843,-250.0,0.00016149,2]
[399522267,1766434246852,-500.0,0.00016149,2]
[399522269,1766434246862,-250.0,0.00016149,2]
[399522270,1766434246871,-250.0,0.00016149,2]
[399522272,1766434246881,-500.0,0.00016149,2]
[399522274,1766434246890,-250.0,0.00016149,2]
[399522275,1766434246899,-250.0,0.00016149,2]
[399522276,1766434246910,-500.0,0.00016149,2]
[399522277,1766434246919,-250.0,0.00016149,2]
[399522278,1766434246928,-250.0,0.00016149,2]
[399522279,1766434246938,-500.0,0.00016149,2]
[399522280,1766434246948,-250.0,0.00016149,2]
[399522281,1766434246957,-250.0,0.00016149,2]
[399522282,1766434246966,-500.0,0.00016149,2]
[399522283,1766434246976,-250.0,0.00016149,2]
[399522284,1766434246985,-250.0,0.00016149,2]
[399522285,1766434246994,-500.0,0.00016149,2]
[399522286,1766434247004,-250.0,0.00016149,2]
[399522288,1766434247014,-250.0,0.00016149,2]
[399522290,1766434247023,-250.0,0.00016149,2]
[399522291,1766434247032,-250.0,0.00016149,2]
[399522293,1766434247041,-250.0,0.00016149,2]
[399522294,1766434247051,-250.0,0.00016149,2]
[399522295,1766434247060,-250.0,0.00016149,2]
[399522296,1766434247069,-250.0,0.00016149,2]
[399522297,1766434247080,-250.0,0.00016149,2]
[399522298,1766434247089,-250.0,0.00016149,2]
[399522299,1766434247100,-250.0,0.00016149,2]
[399522300,1766434247111,-250.0,0.00016149,2]
[399522301,1766434247120,-250.0,0.00016149,2]
[399522302,1766434247130,-200.0,0.00016149,2]
[399522303,1766434247141,-207.4,0.00016149,2]
[399522304,1766434247151,-250.0,0.00016149,2]
[399522305,1766434247161,-215.0738,0.00016149,2]
[399522306,1766434247171,-250.0,0.00016149,2]
[399522307,1766434247180,-223.0315306,0.00016149,2]
[399522308,1766434247191,-250.0,0.00016149,2]
[399522309,1766434247201,-231.28369723,0.00016149,2]
[399522310,1766434247210,-250.0,0.00016149,2]
[399522311,1766434247219,-239.84119403,0.00016149,2]
[399522312,1766434247229,-250.0,0.00016149,2]
[399522313,1766434247238,-248.71531821,0.00016149,2]
[399522314,1766434247247,-250.0,0.00016149,2]
[399522315,1766434247257,-257.91778498,0.00016149,2]
[399522316,1766434247267,-151.0,0.00016149,2]
[399522317,1766434247276,-267.46074303,0.00016149,2]
[399522318,1766434247285,-277.35679052,0.00016149,2]
[399522319,1766434247295,-209.40437684,0.00016149,2]
[399522320,1766434247305,-152.27409135,0.00016149,2]
[399522321,1766434247315,-150.0,0.00016174,2]
[399522322,1766434247324,-150.0,0.00016176,2]
[399522323,1766434247334,-150.0,0.00016182,2]
[399522324,1766434247343,-150.0,0.00016194,2]
[399522325,1766434247352,-150.0,0.00016202,2]
[399522326,1766434247361,-150.0,0.00016214,2]
[399522327,1766434247371,-150.0,0.00016214,2]
[399522328,1766434247380,-150.0,0.00016248,2]
[399522329,1766434247389,-150.0,0.00016253,2]
[399522330,1766434247400,-150.0,0.00016258,2]
[399522331,1766434247410,-150.0,0.00016258,2]
[399522332,1766434247420,-150.0,0.00016268,2]
[399522333,1766434247429,-200.0,0.00016268,2]
[399522334,1766434247439,-200.0,0.00016268,2]
[399522335,1766434247449,-500.0,0.00016268,2]
[399522336,1766434247459,-150.0,0.00016271,2]
[399522337,1766434247468,-150.0,0.00016291,2]
[399522338,1766434247477,-150.0,0.00016291,2]
[399522339,1766434247486,-150.0,0.00016307,2]
[399522340,1766434247495,-150.0,0.00016307,2]
[399522341,1766434247504,-150.0,0.00016322,2]
[399522342,1766434247517,-512.58288867,0.00016327,2]
[399522343,1766434247526,-150.0,0.0001633,2]
[399522344,1766434247535,-150.0,0.00016333,2]
[399522345,1766434247544,-500.0,0.00016335,2]
[399522346,1766434247554,-500.0,0.00016335,2]
[399522347,1766434247563,-500.0,0.00016335,2]
[399522348,1766434247573,-500.0,0.00016335,2]
[399522349,1766434247582,-150.0,0.0001636,2]
[399522350,1766434247594,-150.0,0.00016369,2]
[399522351,1766434247603,-150.0,0.00016369,2]
[399522352,1766434247612,-150.0,0.00016395,2]
[399522353,1766434247622,-150.0,0.00016398,2]
[399522354,1766434247631,-228.0,0.000164,2]
[399522355,1766434247640,-319.0,0.000164,2]
[399522356,1766434247650,-182.0,0.000164,2]
[399522357,1766434247659,-183.8888322,0.000164,2]
[399522358,1766434247669,-150.0,0.00016407,2]
[399522359,1766434247678,-150.0,0.0001642,2]
[399522360,1766434247688,-150.0,0.0001642,2]
[399522361,1766434247697,-150.0,0.0001642,2]
[399522362,1766434247707,-500.0,0.00016437,2]
[399522363,1766434247717,-500.0,0.00016437,2]
[399522364,1766434247726,-500.0,0.00016437,2]
[399522365,1766434247735,-500.0,0.00016437,2]
[399522366,1766434247744,-500.0,0.00016437,2]
[399522367,1766434247754,-500.0,0.00016437,2]
[399522368,1766434247764,-537.61,0.00016437,2]
[399522369,1766434247773,-2972.2,0.00016438,2]
[399522370,1766434247783,-500.0,0.00016438,2]
[399522371,1766434247792,-500.0,0.00016438,2]
[399522372,1766434247801,-500.0,0.00016438,2]
[399522373,1766434247810,-500.0,0.00016438,2]
[399522374,1766434247820,-500.0,0.00016438,2]
[399522375,1766434247829,-500.0,0.00016438,2]
[399522376,1766434247839,-150.0,0.00016438,2]
[399522377,1766434247850,-500.0,0.00016438,2]
[399522378,1766434247859,-689.00211909,0.00016438,2]
[399522379,1766434247868,-689.00211909,0.00016438,2]
[399522380,1766434247878,-689.00211909,0.00016438,2]
[399522381,1766434247888,-689.00211909,0.00016438,2]
[399522382,1766434247897,-689.00211909,0.00016438,2]
[399522383,1766434247907,-689.00211909,0.00016438,2]
[399522384,1766434247916,-689.00211909,0.00016438,2]
[399522385,1766434247926,-689.00211909,0.00016438,2]
[399522386,1766434247935,-689.00211909,0.00016438,2]
[399522387,1766434247944,-689.00211909,0.00016438,2]
[399522388,1766434247953,-689.00211909,0.00016438,2]
[399522389,1766434247963,-689.00211909,0.00016438,2]
[399522390,1766434247972,-689.00211909,0.00016438,2]
[399522391,1766434247981,-689.00211909,0.00016438,2]
[399522392,1766434247992,-689.00211909,0.00016438,2]
[399522393,1766434248002,-689.00211909,0.00016438,2]
[399522394,1766434248011,-689.00211909,0.00016438,2]
[399522395,1766434248021,-689.00211909,0.00016438,2]
[399522396,1766434248030,-689.00211909,0.00016438,2]
[399522397,1766434248040,-689.00211909,0.00016438,2]
[399522398,1766434248050,-689.00211909,0.00016438,2]
[399522399,1766434248059,-689.00211909,0.00016438,2]
[399522400,1766434248070,-689.00211909,0.00016438,2]
[399522401,1766434248079,-689.00211909,0.00016438,2]
[399522402,1766434248090,-689.00211909,0.00016438,2]
[399522403,1766434248100,-689.00211909,0.00016438,2]
[399522404,1766434248189,-689.00211909,0.00016438,2]
[399522405,1766434248199,-689.00211909,0.00016438,2]
[399522406,1766434248208,-689.00211909,0.00016438,2]
[399522407,1766434248218,-689.00211909,0.00016438,2]
[399522408,1766434248227,-689.00211909,0.00016438,2]
[399522409,1766434248236,-689.00211909,0.00016438,2]
[399522410,1766434248245,-689.00211909,0.00016438,2]
[399522411,1766434248254,-689.00211909,0.00016438,2]
[399522412,1766434248263,-689.00211909,0.00016438,2]
[399522413,1766434248273,-689.00211909,0.00016438,2]
[399522414,1766434248284,-689.00211909,0.00016438,2]
[399522415,1766434248293,-689.00211909,0.00016438,2]
[399522416,1766434248302,-689.00211909,0.00016438,2]
[399522417,1766434248311,-689.00211909,0.00016438,2]
[399522418,1766434248321,-689.00211909,0.00016438,2]
[399522419,1766434248332,-689.00211909,0.00016438,2]
[399522420,1766434248342,-689.00211909,0.00016438,2]
[399522421,1766434248352,-689.00211909,0.00016438,2]
[399522422,1766434248361,-689.00211909,0.00016438,2]
[399522423,1766434248371,-689.00211909,0.00016438,2]
[399522424,1766434248380,-689.00211909,0.00016438,2]
[399522425,1766434248390,-689.00211909,0.00016438,2]
[399522426,1766434248399,-689.00211909,0.00016438,2]
[399522427,1766434248408,-689.00211909,0.00016438,2]
[399522428,1766434248417,-689.00211909,0.00016438,2]
[399522429,1766434248426,-689.00211909,0.00016438,2]
[399522430,1766434248435,-689.00211909,0.00016438,2]
[399522431,1766434248444,-689.00211909,0.00016438,2]
[399522432,1766434248453,-689.00211909,0.00016438,2]
[399522433,1766434248462,-689.00211909,0.00016438,2]
[399522434,1766434248472,-689.00211909,0.00016438,2]
[399522435,1766434248482,-689.00211909,0.00016438,2]
[399522436,1766434248504,-689.00211909,0.00016438,2]
[399522437,1766434248519,-689.00211909,0.00016438,2]
[399522438,1766434248530,-689.00211909,0.00016438,2]
[399522439,1766434248539,-689.00211909,0.00016438,2]
[399522440,1766434248549,-689.00211909,0.00016438,2]
[399522441,1766434248560,-689.00211909,0.00016438,2]
[399522442,1766434248571,-689.00211909,0.00016438,2]
[399522443,1766434248581,-689.00211909,0.00016438,2]
[399522444,1766434248591,-689.00211909,0.00016438,2]
[399522445,1766434248601,-689.00211909,0.00016438,2]
[399522446,1766434248612,-689.00211909,0.00016438,2]
[399522447,1766434248622,-225.92,0.00016438,2]
[399522448,1766434248631,-800.0,0.00016438,2]
[399522449,1766434248640,-10182.76064837,0.00016443,2]
[399522450,1766434248650,-150.0,0.00016446,2]
[399522451,1766434248668,-150.0,0.00016446,2]
[399522452,1766434248678,-150.0,0.0001645,2]
[399522453,1766434248687,-23501.22449741,0.00016454,2]
[399522454,1766434248697,-150.0,0.00016464,2]
[399522455,1766434248706,-150.0,0.00016465,2]
[399522456,1766434248716,-500.0,0.00016465,2]
[399522457,1766434248725,-150.0,0.00016469,2]
[399522458,1766434248734,-150.0,0.00016484,2]
[399522459,1766434248744,-253.42007769,0.00016493,2]
[399522460,1766434248753,-500.0,0.00016493,2]
[399522461,1766434248762,-151.84826967,0.00016494,2]
[399522462,1766434248772,-150.0,0.00016501,2]
[399522463,1766434248781,-150.0,0.00016501,2]
[399522464,1766434248790,-500.0,0.0001652,2]
[399522465,1766434248799,-150.0,0.00016523,2]
[399522466,1766434248808,-150.0,0.00016523,2]
[399522467,1766434248818,-150.0,0.00016529,2]
[399522468,1766434248827,-150.0,0.00016533,2]
[399522469,1766434248837,-150.0,0.00016539,2]
[399522470,1766434248846,-150.0,0.00016543,2]
[399522471,1766434248855,-500.0,0.00016548,2]
[399522472,1766434248864,-150.0,0.00016562,2]
[399522473,1766434248873,-278.08,0.00016571,2]
[399522474,1766434248883,-500.0,0.00016575,2]
[399522475,1766434248894,-150.0,0.00016594,2]
[399522476,1766434248903,-150.0,0.000166,2]
[399522477,1766434248915,-150.0,0.000166,2]
[399522478,1766434248924,-500.0,0.00016602,2]
[399522479,1766434248933,-150.0,0.00016617,2]
[399522480,1766434248942,-150.0,0.00016629,2]
[399522481,1766434248952,-500.0,0.0001663,2]
[399522482,1766434248961,-150.0,0.00016639,2]
[399522483,1766434248970,-347.0,0.00016646,2]
[399522484,1766434248979,-150.0,0.00016647,2]
[399522485,1766434248988,-150.0,0.00016647,2]
[399522486,1766434248997,-359.44,0.00016651,2]
[399522487,1766434249006,-151.0,0.00016657,2]
[399522488,1766434249017,-500.0,0.00016657,2]
[399522489,1766434249027,-500.0,0.00016659,2]
[399522490,1766434249036,-500.0,0.00016659,2]
[399522491,1766434249045,-500.0,0.00016659,2]
[399522492,1766434249055,-500.0,0.00016659,2]
[399522493,1766434249064,-150.0,0.0001666,2]
[399522494,1766434249074,-15777.13013271,0.0001666,2]
[399522495,1766434249084,-150.0,0.00016677,2]
[399522496,1766434249093,-150.0,0.00016677,2]
[399522497,1766434249103,-505.01496115,0.00016685,2]
[399522498,1766434249111,-150.0,0.00016691,2]
[399522499,1766434249120,-217.15233878,0.00016697,2]
[399522500,1766434249136,-151.0,0.00016697,2]
[399522501,1766434249145,-595.37131296,0.00016697,2]
[399522502,1766434249154,-151.0,0.00016697,2]
[399522503,1766434249163,-217.15233878,0.00016697,2]
[399522504,1766434249172,-150.0,0.00016703,2]
[399522505,1766434249182,-165.5,0.00016712,2]
[399522506,1766434249191,-150.0,0.00016716,2]
[399522507,1766434249200,-150.0,0.00016718,2]
[399522508,1766434249209,-150.0,0.00016725,2]
[399522509,1766434249219,-150.0,0.00016744,2]
[399522510,1766434249227,-150.0,0.00016744,2]
[399522511,1766434249237,-150.0,0.00016755,2]
[399522512,1766434249246,-150.0,0.00016755,2]
[399522513,1766434249255,-150.0,0.0001676,2]
[399522514,1766434249265,-150.0,0.00016765,2]
[399522515,1766434249274,-150.0,0.0001679,2]
[399522516,1766434249283,-150.0,0.00016793,2]
[399522517,1766434249292,-197.68289653,0.00016794,2]
[399522518,1766434249301,-323.66058424,0.000168,2]
[399522519,1766434249310,-150.0,0.00016807,2]
[399522520,1766434249320,-200.0,0.00016816,2]
[399522521,1766434249330,-200.0,0.00016816,2]
[399522522,1766434249339,-500.0,0.00016816,2]
[399522523,1766434249348,-150.0,0.00016832,2]
[399522524,1766434249358,-150.0,0.00016832,2]
[399522525,1766434249367,-150.0,0.00016839,2]
[399522526,1766434249377,-150.0,0.00016856,2]
[399522527,1766434249387,-488.0,0.0001686,2]
[399522528,1766434249397,-200.0,0.00016863,2]
[399522529,1766434249406,-200.0,0.00016863,2]
[399522530,1766434249417,-200.0,0.00016864,2]
[399522531,1766434249426,-200.0,0.00016864,2]
[399522532,1766434249435,-200.0,0.00016864,2]
[399522533,1766434249445,-200.0,0.00016864,2]
[399522534,1766434249454,-200.0,0.00016864,2]
[399522535,1766434249463,-150.0,0.0001687,2]
[399522536,1766434249473,-150.0,0.00016873,2]
[399522537,1766434249482,-150.0,0.00016897,2]
[399522538,1766434249491,-591.80368578,0.00016899,2]
[399522539,1766434249500,-591.80368577,0.000169,2]
[399522540,1766434249510,-591.80368577,0.000169,2]
[399522541,1766434249522,-23501.22449741,0.000169,2]
[399522542,1766434249532,-10182.76064837,0.000169,2]
[399522543,1766434249542,-211.71595034,0.000169,2]
[399522544,1766434249550,-512.58288867,0.000169,2]
[399522545,1766434249561,-1087.41118798,0.000169,2]
[399522546,1766434249571,-1379.29748404,0.000169,2]
[399522547,1766434249580,-14559.0,0.000169,2]
[399522548,1766434249590,-150.0,0.00016909,2]
[399522549,1766434249598,-150.0,0.00016909,2]
[399522550,1766434249608,-150.0,0.00016912,2]
[399522551,1766434249618,-150.0,0.00016921,2]
[399522552,1766434249627,-150.0,0.00016948,2]
[399522553,1766434249637,-761.0,0.00016959,2]
[399522554,1766434249647,-467.74131311,0.00016981,2]
[399522555,1766434249656,-1074.89711384,0.00016981,2]
[399522556,1766434249665,-500.0,0.00016983,2]
[399522557,1766434249675,-217.8076658,0.00016983,2]
[399522558,1766434249683,-150.00000001,0.00016986,2]
[399522559,1766434249693,-150.0,0.00016986,2]
[399522560,1766434249702,-174.96680865,0.00016986,2]
[399522561,1766434249711,-178.51553078,0.00016986,2]
[399522562,1766434249721,-190.72072337,0.00016986,2]
[399522563,1766434249730,-150.00000001,0.00016986,2]
[399522564,1766434249739,-151.97105388,0.00016986,2]
[399522565,1766434249749,-150.0,0.00016986,2]
[399522566,1766434249758,-153.06018393,0.00016986,2]
[399522567,1766434249767,-153.06730128,0.00016986,2]
[399522568,1766434249776,-150.0,0.00016986,2]
[399522569,1766434249787,-1324.53170706,0.0001699,2]
[399522570,1766434249797,-1324.53170706,0.0001699,2]
[399522571,1766434249807,-248.742972,0.00016995,2]
[399522572,1766434249816,-151.0,0.00016997,2]
[399522573,1766434249826,-500.0,0.00016998,2]
[399522574,1766434249836,-500.0,0.00016998,2]
[399522575,1766434249846,-500.0,0.00016998,2]
[399522576,1766434249856,-500.0,0.00016998,2]
[399522577,1766434249865,-500.0,0.00016998,2]
[399522578,1766434249875,-500.0,0.00016998,2]
[399522579,1766434249884,-500.0,0.00016998,2]
[399522580,1766434249894,-500.0,0.00016998,2]
[399522581,1766434249904,-376.9654415,0.00016998,2]
[399522582,1766434249914,-500.0,0.00016998,2]
[399522583,1766434249924,-500.0,0.00016998,2]
[399522584,1766434249934,-500.0,0.00016998,2]
[399522585,1766434249944,-500.0,0.00016998,2]
[399522586,1766434249954,-500.0,0.00016998,2]
[399522587,1766434249963,-500.0,0.00016998,2]
[399522588,1766434249973,-500.0,0.00016998,2]
[399522589,1766434249983,-500.0,0.00016998,2]
[399522590,1766434249993,-500.0,0.00016998,2]
[399522591,1766434250002,-436.38149996,0.00016998,2]
[399522592,1766434250012,-547.3467704,0.00016998,2]
[399522593,1766434250022,-150.0,0.00016998,2]
[399522594,1766434250031,-500.0,0.00016998,2]
[399522595,1766434250041,-500.0,0.00016998,2]
[399522596,1766434250050,-518.50192951,0.00016998,2]
[399522597,1766434250060,-508.36812857,0.00016998,2]
[399522598,1766434250070,-537.61,0.00016998,2]
[399522599,1766434250079,-537.61,0.00016998,2]
[399522600,1766434250088,-537.61,0.00016998,2]
[399522601,1766434250098,-214.0,0.00016999,2]
[399522602,1766434250108,-7942.6760013,0.00016999,2]
[399522603,1766434250118,-500.0,0.00016999,2]
[399522604,1766434250127,-500.0,0.00016999,2]
[399522605,1766434250137,-500.0,0.00016999,2]
[399522606,1766434250146,-500.0,0.00016999,2]
[399522607,1766434250156,-500.0,0.00016999,2]
[399522608,1766434250166,-500.0,0.00016999,2]
[399522609,1766434250176,-500.0,0.00016999,2]
[399522610,1766434250186,-591.86528871,0.00016999,2]
[399522611,1766434250195,-500.0,0.00016999,2]
[399522612,1766434250204,-170.60009205,0.00016999,2]
[399522613,1766434250214,-597170.738148,0.00016999,2]
[399522614,1766434250223,-300.0,0.00016999,2]
[399522615,1766434250232,-666.0,0.00016999,2]
[399522616,1766434250242,-500.0,0.00016999,2]
[399522617,1766434250251,-500.0,0.00016999,2]
[399522618,1766434250261,-500.0,0.00016999,2]